bitfinex/quotes_ETHUSD_20241001
["timestamp","ask_amount","ask_price","bid_price","bid_amount"]
[1727742599135,4.60924,2616.8,2616.3,3.82218]
[1727742599338,4.60924,2616.8,2616.2,3.82224]
[1727742599638,0.7877,2616.8,2616.2,4.586778]
[1727742599961,4.60916,2616.8,2616.2,7.64453]
[1727742600152,4.60916,2616.8,2616.3,3.82214]
[1727742600488,4.60916,2616.8,2615.6,3.82314]
[1727742600489,4.64438,2616.3,2615.6,3.82314]
[1727742600774,4.64438,2616.3,2615.7,3.82301]
[1727742600775,0.8221,2616.3,2615.7,3.82301]
[1727742601025,0.8221,2616.3,2616.0,3.82252]
[1727742601190,0.8251,2616.8,2615.8,0.121]
[1727742601336,0.8251,2616.8,2616.3,3.82212]
[1727742601540,0.8251,2616.8,2616.1,0.07644707]
[1727742601541,3.82168,2616.7,2616.1,3.8224]
[1727742601778,3.82168,2616.7,2616.1,8.02703]
[1727742601980,3.82191,2616.5,2615.9,3.82269]
[1727742602342,3.82191,2616.5,2616.0,3.0]
[1727742602689,3.82191,2616.5,2615.5,3.82333]
[1727742602690,0.7538,2616.4,2615.5,3.82333]
[1727742602981,3.82168,2616.7,2615.5,3.82333]
[1727742602982,0.7538,2616.8,2616.3,3.8221]
[1727742603177,0.7538,2616.8,2616.5,3.82187]
[1727742603384,0.7538,2616.8,2616.3,3.82209]
[1727742603676,0.7538,2616.8,2616.5,3.82188]
[1727742604173,0.7538,2616.8,2616.4,3.82203]
[1727742604360,0.7538,2616.8,2616.3,3.82209]
[1727742604684,0.7538,2616.8,2616.0,3.121]
[1727742604685,5.032864,2616.8,2616.2,3.82233]
[1727742604846,0.7538,2616.8,2616.4,3.82196]
[1727742605195,0.7538,2616.8,2616.3,3.82207]
[1727742605484,3.82047,2617.5,2616.2,0.07643638]
[1727742605485,0.773,2617.1,2616.5,3.89821519]
[1727742605640,0.773,2617.1,2616.5,3.82178]
[1727742605840,0.773,2617.1,2616.7,3.82158]
[1727742606263,0.773,2617.1,2616.5,4.21162094]
[1727742606762,0.773,2617.1,2616.7,3.82159]
[1727742607295,3.82053,2617.5,2616.9,3.82131]
[1727742607443,0.773,2617.4,2617.0,0.3897738]
[1727742607643,0.773,2617.4,2616.9,3.82131]
[1727742608179,0.773,2617.4,2617.0,0.07642066]
[1727742608353,0.773,2617.4,2617.0,3.89757066]
[1727742608680,0.773,2617.4,2616.9,3.82124]
[1727742608982,0.773,2617.4,2617.1,3.821]
[1727742609282,0.773,2617.4,2617.0,3.82116]
[1727742609646,0.773,2617.4,2617.0,3.89757435]
[1727742609964,0.773,2617.4,2617.0,4.68155079]
[1727742610161,0.773,2617.4,2617.0,4.60511644]
[1727742610367,0.773,2617.4,2617.0,3.82114]
[1727742610666,0.773,2617.4,2617.1,3.82093]
[1727742610869,3.9467499,2617.7,2617.1,3.82093]
[1727742610870,0.9383399,2617.7,2617.1,0.07641431]
[1727742611074,0.9383399,2617.7,2617.5,3.121]
[1727742611075,0.1265399,2617.7,2617.5,3.121]
[1727742611238,0.1265399,2617.7,2617.6,7.52939434]
[1727742611446,0.1265399,2617.7,2617.6,7.45300052]
[1727742611644,0.1265399,2617.7,2617.4,3.20610524]
[1727742611645,0.1265399,2617.7,2617.4,6.82052]
[1727742611848,0.1265399,2617.7,2617.2,3.0]
[1727742612045,0.7899,2617.6,2617.2,3.0]
[1727742612292,0.7899,2617.6,2617.0,3.82114]
[1727742612476,0.7899,2617.6,2616.9,3.82121]
[1727742612794,4.61028,2617.6,2617.0,3.82114]
[1727742612955,4.61028,2617.6,2616.9,3.82121]
[1727742612956,3.82048,2617.5,2616.9,3.82121]
[1727742614055,3.82045,2617.5,2617.0,3.82107]
[1727742614799,0.7899,2617.6,2617.1,0.07641824]
[1727742614964,0.7899,2617.6,2617.0,3.82112]
[1727742615171,4.61021,2617.6,2617.0,3.82112]
[1727742615375,0.7899,2617.6,2617.0,3.82112]
[1727742615699,0.7899,2617.6,2617.0,3.82104]
[1727742616008,0.7899,2617.6,2617.2,3.82087]
[1727742616900,3.82054,2617.5,2616.8,3.82143]
[1727742617108,3.82059,2617.4,2616.8,3.82143]
[1727742617272,3.82075,2617.3,2616.8,3.82143]
[1727742617471,7.64111,2617.5,2616.8,3.82143]
[1727742617704,3.82068,2617.4,2616.8,3.82143]
[1727742617898,4.87467314,2617.5,2616.9,3.8213]
[1727742618300,0.7899,2617.6,2616.9,0.07642198]
[1727742618473,0.7899,2617.6,2617.2,3.82077]
[1727742618677,0.91974199,2617.7,2617.4,3.82057]
[1727742618876,0.1265399,2617.7,2617.5,3.82041]
[1727742619067,0.1265399,2617.7,2617.4,3.82057]
[1727742619287,0.1265399,2617.7,2617.4,8.023107]
[1727742619518,0.1265399,2617.7,2617.5,3.82042]
[1727742620233,0.1265399,2617.7,2617.4,4.202537]
[1727742620234,0.1265399,2617.7,2617.4,0.382057]
[1727742620414,0.1265399,2617.7,2617.4,3.82056]
[1727742621313,0.1265399,2617.7,2617.4,3.82047]
[1727742621542,0.1265399,2617.7,2617.4,7.64096]
[1727742621722,0.1265399,2617.7,2617.4,3.82047]
[1727742622027,0.1265399,2617.7,2617.4,8.023007]
[1727742622209,0.1265399,2617.7,2617.2,3.82084]
[1727742622417,0.7704,2617.5,2616.8,3.82135]
[1727742622614,0.7704,2617.5,2616.6,3.82171]
[1727742622615,3.82075,2617.3,2616.6,3.82171]
[1727742622817,0.771,2617.2,2616.6,3.82171]
[1727742623021,0.771,2617.2,2616.8,3.82136]
[1727742623222,0.771,2616.8,2616.3,3.82211]
[1727742623400,0.771,2616.8,2616.3,3.8221]
[1727742623710,0.79320209,2617.1,2616.7,3.82157]
[1727742624088,0.79320209,2617.1,2616.5,3.82178]
[1727742624304,0.79320209,2617.1,2616.5,0.382178]
[1727742624602,0.79320209,2617.1,2616.7,3.8215]
[1727742624827,0.79320209,2617.1,2616.7,7.64302]
[1727742625027,0.79320209,2617.1,2616.9,3.82118]
[1727742625200,0.79320209,2617.2,2617.1,3.82102]
[1727742625410,1.56420209,2617.4,2616.9,3.8212]
[1727742625744,1.56420209,2617.4,2617.1,3.82099]
[1727742625972,1.56420209,2617.4,2616.9,4.585459]
[1727742626241,1.56420209,2617.4,2616.9,3.8212]
[1727742626242,0.79320209,2617.3,2616.9,3.8212]
[1727742627245,0.79320209,2617.3,2616.8,3.82143]
[1727742627747,0.79320209,2617.3,2616.9,3.8213]
[1727742628210,0.79320209,2617.3,2616.9,3.8212]
[1727742628413,0.79320209,2617.3,2617.0,3.82115]
[1727742628657,0.79320209,2617.3,2617.0,3.82112]
[1727742629409,0.79320209,2617.3,2617.0,3.82116]
[1727742629604,0.79320209,2617.3,2616.7,3.82151]
[1727742629811,0.79320209,2617.3,2616.1,3.9434]
[1727742629812,0.8024,2616.9,2616.1,3.9434]
[1727742630030,3.82151,2616.8,2616.3,3.82209]
[1727742630209,1.59560209,2616.9,2616.4,3.822]
[1727742630406,1.59560209,2616.9,2616.5,3.82178]
[1727742630637,0.8024,2616.9,2616.5,3.82178]
[1727742630859,0.79320209,2617.0,2616.9,3.82131]
[1727742631063,1.19057938,2617.1,2616.9,3.82131]
[1727742631064,0.79320209,2617.1,2616.9,3.82131]
[1727742631363,0.79320209,2617.1,2617.0,3.82116]
[1727742631650,0.79320209,2617.3,2617.1,3.82094]
[1727742631858,1.62020209,2617.4,2617.1,3.82094]
[1727742632054,1.62020209,2617.4,2616.8,3.0]
[1727742632370,1.62020209,2617.4,2617.0,3.82102]
[1727742632647,1.62020209,2617.4,2617.1,3.82093]
[1727742633050,1.62020209,2617.4,2617.2,3.82084]
[1727742633250,0.1265399,2617.7,2617.3,3.0]
[1727742633251,0.91974199,2617.7,2617.3,3.0]
[1727742633554,0.91974199,2617.7,2617.0,3.82111]
[1727742633555,0.79320209,2617.6,2617.1,3.8209]
[1727742633917,0.79320209,2617.5,2617.1,3.8209]
[1727742634117,0.7756,2617.4,2617.1,3.8209]
[1727742634318,0.79320209,2617.5,2617.3,3.82072]
[1727742634519,0.79320209,2617.5,2617.1,4.20303]
[1727742634715,0.79320209,2617.6,2617.4,3.82058]
[1727742634919,0.79320209,2617.5,2617.3,3.8207]
[1727742635149,0.79320209,2617.5,2616.9,3.82121]
[1727742635358,0.79320209,2617.4,2616.9,3.82121]
[1727742635836,0.79320209,2617.4,2616.9,3.8213]
[1727742636047,5.39551209,2617.3,2616.7,3.82152]
[1727742636253,3.82088,2617.2,2616.7,3.82152]
[1727742636452,3.82088,2617.2,2616.7,7.64303]
[1727742636618,3.82088,2617.2,2616.7,3.82151]
[1727742636952,4.61408209,2617.2,2616.7,3.82151]
[1727742637315,0.79320209,2617.2,2616.7,3.82151]
[1727742637756,0.79320209,2617.2,2616.1,3.82242]
[1727742637757,0.7728,2616.8,2616.1,3.82242]
[1727742637984,0.7728,2616.8,2615.7,1.61930303]
[1727742637985,1.56600209,2616.7,2615.9,3.82267]
[1727742638118,0.79320209,2616.6,2616.1,3.82234]
[1727742638322,0.79320209,2616.6,2616.2,3.82232]
[1727742638660,0.79320209,2616.6,2616.1,3.82234]
[1727742638963,0.79320209,2616.6,2616.4,3.82204]
[1727742639132,0.79320209,2616.6,2616.1,4.204624]
[1727742639133,1.56600209,2616.7,2616.3,3.82217]
[1727742639329,0.79320209,2616.8,2616.5,3.82177]
[1727742639518,0.79320209,2616.9,2616.4,6.82204]
[1727742639920,0.79320209,2616.9,2616.5,3.82188]
[1727742640223,0.79320209,2616.9,2616.4,3.0]
[1727742640224,4.61452209,2616.9,2616.4,3.0]
[1727742640440,1.60100209,2616.7,2616.4,3.82193]
[1727742640654,0.79320209,2616.8,2616.5,3.8218]
[1727742640819,0.79320209,2617.1,2616.8,3.82146]
[1727742641197,0.8078,2617.3,2616.8,3.82146]
[1727742641198,1.60100209,2617.3,2617.0,3.82108]
[1727742641453,1.60100209,2617.3,2616.9,3.82131]
[1727742641454,0.8078,2617.3,2617.1,3.82088]
[1727742641620,0.79320209,2617.4,2617.1,3.82088]
[1727742642253,0.79320209,2617.5,2617.2,3.82086]
[1727742642457,0.79320209,2617.5,2616.8,0.382146]
[1727742642458,0.79320209,2617.5,2616.9,3.82123]
[1727742642664,0.79320209,2617.5,2617.0,0.4203376]
[1727742642820,0.79320209,2617.5,2617.1,3.82098]
[1727742643215,0.79320209,2617.5,2617.0,7.2414976]
[1727742643656,0.79320209,2617.5,2617.2,3.82083]
[1727742643850,1.60100209,2617.6,2617.4,3.82058]
[1727742644051,0.8078,2617.6,2617.4,4.202638]
[1727742644778,0.1265399,2617.7,2617.5,3.82043]
[1727742645057,0.1265399,2617.7,2617.6,3.82029]
[1727742645258,0.1265399,2617.7,2617.5,3.82043]
[1727742645428,0.1265399,2617.7,2617.4,0.382058]
[1727742645630,0.1265399,2617.7,2617.3,3.82067]
[1727742645959,0.1265399,2617.7,2617.0,3.5413376]
[1727742645960,1.58640238,2618.6,2618.4,3.81912]
[1727742646159,0.8291,2618.9,2618.4,3.81912]
[1727742646160,2.01967938,2618.9,2618.4,3.81912]
[1727742646324,0.8291,2618.9,2618.5,3.81888]
[1727742646521,1.19057938,2619.1,2618.6,3.8188]
[1727742646776,2.01967938,2619.2,2618.8,3.81853]
[1727742647068,1.19057938,2619.1,2618.8,3.81852]
[1727742647272,0.8291,2619.2,2618.9,0.07636436]
[1727742647273,1.19057938,2619.2,2618.9,0.07636436]
[1727742647428,6.22007262,2619.7,2618.9,0.07636436]
[1727742647429,1.53640238,2619.7,2619.2,3.81795]
[1727742647631,1.48640238,2619.7,2619.2,0.381795]
[1727742647863,0.7508,2620.2,2619.3,3.89416078]
[1727742648066,0.1265399,2620.3,2619.0,3.0]
[1727742648067,3.81706,2619.9,2619.0,3.0]
[1727742648280,3.81703,2619.9,2619.0,3.0]
[1727742648578,1.99853744,2620.2,2619.0,3.0]
[1727742648579,3.76718,2619.8,2619.0,3.0]
[1727742648861,3.81738,2619.6,2618.9,0.07634976]
[1727742649025,3.81738,2619.6,2618.8,3.0]
[1727742649225,3.81768,2619.4,2618.8,3.0]
[1727742649483,0.55,2619.5,2617.9,3.99084]
[1727742649679,7.63731,2618.8,2617.9,3.99076]
[1727742649888,3.81869,2618.7,2617.9,4.06714347]
[1727742650084,3.81902,2618.5,2617.7,3.82011]
[1727742650316,3.81902,2618.5,2617.6,0.07638758]
[1727742650616,3.81902,2618.5,2617.7,3.82008]
[1727742651026,5.81662744,2619.2,2617.6,0.48315934]
[1727742651027,3.81932,2618.3,2617.6,0.40677176]
[1727742651316,0.7575,2618.1,2617.6,0.40677176]
[1727742651523,3.81918,2618.4,2617.6,0.07639783]
[1727742651707,0.8079,2618.4,2617.8,3.81998]
[1727742651911,3.81928,2618.3,2617.5,3.99133]
[1727742652225,0.8079,2618.4,2617.3,3.82066]
[1727742652226,3.81975,2618.0,2617.3,3.82066]
[1727742652516,3.81975,2618.0,2617.4,3.399166]
[1727742652722,3.81975,2618.0,2617.4,3.47556476]
[1727742652893,3.81975,2618.0,2617.4,7.29613476]
[1727742653167,3.81975,2618.0,2617.4,3.47556476]
[1727742653436,3.81952,2618.2,2617.4,7.29611476]
[1727742653634,3.8196,2618.1,2617.5,1.11167748]
[1727742654129,0.8007,2617.7,2617.0,0.4203376]
[1727742654363,0.8007,2617.7,2616.5,1.62533616]
[1727742654628,7.76547933,2618.1,2616.5,1.62533616]
[1727742654629,3.82142,2616.9,2616.5,1.45433616]
[1727742654947,3.82159,2616.8,2616.5,1.45433616]
[1727742655230,3.82175,2616.6,2616.5,1.45433616]
[1727742655428,7.64306,2616.8,2616.5,1.45433616]
[1727742655738,7.64306,2616.8,2615.7,0.171]
[1727742655739,3.82147,2616.8,2616.1,3.89891995]
[1727742655890,0.8007,2617.0,2616.2,0.389892]
[1727742656222,3.82097,2617.2,2616.2,0.389892]
[1727742656223,3.82097,2617.2,2616.5,3.8218]
[1727742656394,4.5744,2617.4,2616.4,0.171]
[1727742656395,3.82149,2616.8,2616.4,0.171]
[1727742656594,0.7538,2616.7,2615.9,0.171]
[1727742656819,0.7538,2616.7,2615.6,0.171]
[1727742656820,3.82251,2616.1,2615.6,0.171]
[1727742657021,3.82224,2616.3,2615.4,3.82338]
[1727742657192,3.82224,2616.3,2615.3,0.24745576]
[1727742657193,3.82204,2616.4,2615.8,3.8229]
[1727742657398,3.82195,2616.5,2615.8,3.8229]
[1727742657856,3.82195,2616.5,2615.9,0.07644881]
[1727742658201,3.82206,2616.4,2615.9,0.07644702]
[1727742658437,3.82195,2616.5,2615.9,0.3899347]
[1727742659947,4.57543,2616.7,2615.9,3.46638542]
[1727742660454,0.7884,2617.0,2616.3,3.82215]
[1727742660632,0.7884,2617.0,2616.0,6.8226]
[1727742660840,3.82172,2616.7,2616.0,6.8226]
[1727742661021,3.82176,2616.6,2616.1,0.74599702]
[1727742661248,5.01875226,2617.2,2615.9,0.3899347]
[1727742661249,3.82201,2616.5,2615.9,0.3899347]
[1727742661442,4.63244,2616.2,2615.5,3.57808358]
[1727742661607,4.63244,2616.2,2615.0,3.94584933]
[1727742661608,0.8101,2616.2,2615.6,3.82308]
[1727742662016,0.8101,2616.5,2616.0,3.82262]
[1727742662357,4.57336,2616.8,2616.1,4.204702]
[1727742662516,0.7519,2616.8,2616.5,3.82182]
[1727742662719,0.7519,2617.2,2616.9,3.8213]
[1727742662918,5.01815226,2617.6,2617.0,0.38213]
[1727742662919,3.82059,2617.4,2617.0,0.38213]
[1727742663219,3.82059,2617.4,2616.7,3.89791152]
[1727742663220,3.82085,2617.3,2616.7,3.89791152]
[1727742663424,3.82059,2617.4,2616.6,3.07642152]
[1727742663622,0.7519,2617.5,2616.9,3.82117]
[1727742663830,0.7506,2617.8,2617.1,3.8209]
[1727742664018,0.7506,2617.8,2616.7,0.68983115]
[1727742664019,4.5706,2617.8,2617.2,3.0]
[1727742664242,0.7506,2617.8,2617.2,3.0]
[1727742664457,0.7506,2617.8,2617.4,3.82057]
[1727742664645,0.7506,2617.8,2617.3,0.682095]
[1727742664646,3.82009,2617.8,2617.3,0.682095]
[1727742664849,3.81984,2618.0,2617.3,0.682095]
[1727742665078,0.7506,2618.1,2617.3,4.502685]
[1727742665280,3.81972,2618.0,2617.3,4.502685]
[1727742665436,0.7506,2618.1,2617.5,3.82033]
[1727742665641,3.81947,2618.2,2617.6,0.07639966]
[1727742665872,3.81958,2618.1,2617.5,3.99133]
[1727742666681,3.81971,2618.0,2617.5,0.171]
[1727742667262,3.81947,2618.2,2617.1,0.171]
[1727742667263,3.82014,2617.7,2617.1,0.171]
[1727742667576,3.82014,2617.7,2617.1,3.870207]
[1727742667784,3.81979,2618.0,2617.1,3.171]
[1727742667939,3.82054,2617.5,2616.9,3.0]
[1727742668168,3.82054,2617.5,2616.9,6.82122]
[1727742668362,3.82054,2617.5,2617.0,1.07190247]
[1727742668570,3.8206,2617.4,2617.0,1.07190247]
[1727742668762,4.58823,2617.9,2616.7,0.86083115]
[1727742668964,3.82122,2617.0,2616.4,0.171]
[1727742669172,3.82122,2617.0,2616.4,3.99295]
[1727742669376,4.65302,2617.0,2616.4,3.99295]
[1727742669612,0.8318,2617.0,2616.5,3.82189]
[1727742669741,3.82104,2617.1,2616.6,0.781484]
[1727742669742,3.82103,2617.1,2616.6,0.781484]
[1727742669945,3.82155,2616.8,2616.1,0.171]
[1727742670168,3.82224,2616.3,2615.7,0.171]
[1727742670346,1.3818,2616.9,2615.4,3.82342]
[1727742670347,3.82237,2616.2,2615.4,3.82337]
[1727742670544,3.82237,2616.2,2615.6,3.8231]
[1727742670789,3.82237,2616.2,2615.5,0.07645514]
[1727742670790,3.82237,2616.2,2615.7,0.38995551]
[1727742670997,3.82237,2616.2,2615.3,0.171]
[1727742670998,3.82251,2616.1,2615.4,3.82339]
[1727742671165,3.82251,2616.1,2615.4,3.89984625]
[1727742671359,3.82264,2616.0,2615.5,3.82334]
[1727742671695,3.82264,2616.0,2615.5,3.89979627]
[1727742671932,3.82295,2615.8,2615.3,0.171]
[1727742672188,3.82264,2616.0,2615.4,3.82346]
[1727742672401,0.7595,2616.1,2615.5,3.82327]
[1727742672690,4.58208,2616.1,2615.5,3.82327]
[1727742673303,3.82181,2616.6,2615.7,3.82306]
[1727742673304,3.82209,2616.4,2615.7,3.82306]
[1727742673489,3.82216,2616.4,2615.6,3.0]
[1727742673658,3.82245,2616.2,2615.7,0.682332]
[1727742674094,3.82273,2616.0,2615.7,0.682332]
[1727742674384,3.82273,2616.0,2615.4,6.82349]
[1727742674572,3.82278,2615.9,2615.4,3.0]
[1727742674978,3.8231,2615.7,2615.3,0.171]
[1727742675182,3.82294,2615.8,2615.1,3.90029797]
[1727742675378,3.8228,2615.9,2615.1,3.90029797]
[1727742675555,3.8232,2615.7,2615.2,0.3900298]
[1727742675994,3.82317,2615.7,2615.2,0.3900298]
[1727742676272,3.82317,2615.7,2615.0,3.0]
[1727742676469,4.62024,2615.9,2615.1,3.90031839]
[1727742677083,3.82294,2615.8,2615.1,3.90031839]
[1727742677287,3.82315,2615.7,2615.1,3.90030839]
[1727742677483,3.82322,2615.6,2615.2,0.69003084]
[1727742677667,3.82315,2615.7,2615.2,0.69003084]
[1727742678310,4.62025,2615.9,2615.2,0.69003084]
[1727742678311,3.82285,2615.9,2615.3,3.8236]
[1727742678508,3.82254,2616.1,2615.3,3.8236]
[1727742678509,4.64498,2616.2,2615.5,3.82336]
[1727742678667,3.82273,2616.0,2615.6,0.382336]
[1727742678874,3.82198,2616.5,2615.6,0.382336]
[1727742679174,3.82219,2616.3,2615.8,3.8229]
[1727742679819,3.82219,2616.3,2615.3,3.8236]
[1727742679820,3.82256,2616.1,2615.6,3.0]
[1727742680017,3.82256,2616.1,2615.5,3.82335]
[1727742680171,3.82256,2616.1,2615.6,0.682335]
[1727742680599,0.8226,2616.6,2615.6,0.682335]
[1727742680798,3.82318,2615.7,2615.2,0.86103084]
[1727742681010,3.82322,2615.6,2615.2,3.86103084]
[1727742681313,3.82322,2615.6,2614.9,3.82419]
[1727742681314,3.82318,2615.7,2615.1,3.82392]
[1727742681616,7.64634,2615.7,2615.1,3.82392]
[1727742682070,3.82316,2615.7,2615.1,3.82392]
[1727742682469,4.63465,2615.9,2615.4,3.82346]
[1727742682470,0.8118,2615.9,2615.4,3.82346]
[1727742682718,3.82255,2616.1,2615.5,0.382346]
[1727742682876,4.59226,2616.3,2615.5,0.382346]
[1727742683230,4.59226,2616.3,2614.9,0.171]
[1727742683231,3.82243,2616.2,2615.7,3.0]
[1727742683527,3.8223,2616.3,2615.7,3.0]
[1727742683528,3.82251,2616.1,2615.7,3.0]
[1727742683693,3.8223,2616.3,2615.6,3.82308]
[1727742683898,3.8223,2616.3,2615.7,3.82304]
[1727742684103,3.8223,2616.3,2615.7,4.587652]
[1727742685226,3.82235,2616.2,2615.7,0.764612]
[1727742685426,3.82258,2616.1,2615.5,3.0]
[1727742685599,3.82258,2616.1,2615.6,3.8232]
[1727742686223,3.82258,2616.1,2615.5,6.82333]
[1727742686425,0.55,2616.5,2615.5,3.07646034]
[1727742686426,3.82196,2616.5,2615.5,3.07646034]
[1727742686636,3.82196,2616.5,2615.8,3.82282]
[1727742686798,3.82196,2616.5,2615.9,3.82274]
[1727742687792,3.82196,2616.5,2615.9,3.82267]
[1727742687987,7.64339,2616.7,2616.1,3.82246]
[1727742688200,0.8143,2616.9,2616.1,0.764513]
[1727742688201,3.82219,2616.3,2616.1,0.764513]
[1727742688404,3.82219,2616.3,2615.6,4.30176603]
[1727742688727,5.19561,2616.7,2615.9,3.82268]
[1727742688728,3.82194,2616.5,2615.9,3.82268]
[1727742689235,4.64558,2616.7,2616.0,0.07644831]
[1727742689403,3.8218,2616.6,2616.1,3.82244]
[1727742690127,3.8218,2616.6,2616.0,4.21251283]
[1727742690625,0.8239,2616.7,2616.1,3.82246]
[1727742690804,4.64552,2616.7,2616.1,3.82246]
[1727742690999,4.64552,2616.7,2616.0,0.38991283]
[1727742691214,3.82194,2616.5,2616.0,0.38991283]
[1727742691550,3.82194,2616.5,2616.1,0.42126128]
[1727742692042,7.64284,2616.9,2616.2,3.171]
[1727742692202,3.82167,2616.7,2616.2,3.171]
[1727742692527,3.82176,2616.6,2616.2,3.171]
[1727742692706,3.82152,2616.8,2616.3,0.74146113]
[1727742693100,0.8127,2617.0,2616.3,0.07643705]
[1727742693427,4.58584,2617.3,2616.7,3.82158]
[1727742693614,3.82065,2617.4,2616.8,3.171]
[1727742693925,3.82065,2617.4,2616.8,6.99245]
[1727742694138,4.58546,2617.6,2617.0,3.0]
[1727742694318,3.82036,2617.6,2617.1,0.682129]
[1727742695332,3.82036,2617.6,2617.0,3.0]
[1727742695835,0.55,2617.8,2616.8,3.171]
[1727742696042,0.55,2617.8,2616.8,0.24741589]
[1727742696043,3.82007,2617.8,2616.8,0.24741589]
[1727742696326,3.82003,2617.8,2617.4,3.171]
[1727742696730,3.81979,2618.0,2617.4,6.99148]
[1727742697036,3.81959,2618.1,2617.6,3.0]
[1727742697510,4.58122,2618.2,2617.6,3.0]
[1727742697511,3.81972,2618.0,2617.6,3.0]
[1727742698290,3.81959,2618.1,2617.6,3.0]
[1727742698929,3.81971,2618.0,2617.6,3.0]
[1727742699097,3.81971,2618.0,2617.6,3.7690503]
[1727742699298,3.8189,2618.6,2618.0,3.171]
[1727742699702,3.81887,2618.6,2618.0,0.171]
[1727742700007,3.81887,2618.6,2618.0,3.171]
[1727742700208,3.81887,2618.6,2618.1,3.89594699]
[1727742700405,3.81887,2618.6,2618.0,3.171]
[1727742700623,3.81898,2618.5,2618.0,3.171]
[1727742700802,0.7721,2618.8,2617.8,3.0]
[1727742700803,3.81958,2618.1,2617.8,3.0]
[1727742700998,3.81958,2618.1,2617.7,0.171]
[1727742701231,3.81958,2618.1,2617.7,1.32907003]
[1727742701537,7.7659363,2618.9,2617.6,0.7690503]
[1727742701538,3.81988,2617.9,2617.6,0.7690503]
[1727742701702,3.81988,2617.9,2617.4,3.171]
[1727742702146,3.81988,2617.9,2617.4,6.99157]
[1727742702310,3.82025,2617.7,2617.4,0.171]
[1727742702517,3.81994,2617.9,2617.4,0.171]
[1727742702709,7.6399,2617.9,2617.4,0.171]
[1727742703024,3.8196,2618.1,2617.4,4.0679666]
[1727742703226,3.8196,2618.1,2617.5,0.78886066]
[1727742703227,3.81972,2618.0,2617.5,0.78886066]
[1727742703630,3.8196,2618.1,2617.5,3.78886066]
[1727742703798,7.63929,2618.1,2617.5,4.60928066]
[1727742704019,3.8196,2618.1,2617.5,0.78886066]
[1727742704238,3.81971,2618.0,2617.5,4.60929066]
[1727742704452,3.8196,2618.1,2617.6,3.77802907]
[1727742704741,3.81928,2618.3,2617.7,3.89651447]
[1727742704936,3.81872,2618.7,2617.7,3.89651447]
[1727742704937,3.81874,2618.7,2618.0,3.171]
[1727742705147,3.81874,2618.7,2618.1,0.77545851]
[1727742705302,3.81894,2618.6,2618.1,0.07638251]
[1727742705638,4.57528,2618.9,2618.1,0.07638251]
[1727742705639,3.81864,2618.8,2618.2,3.0]
[1727742705863,3.81864,2618.8,2618.2,3.07637534]
[1727742706068,3.81864,2618.8,2618.2,6.8194]
[1727742706587,3.81848,2618.9,2618.4,3.0]
[1727742706782,3.81858,2618.8,2618.4,3.68956358]
[1727742707070,3.81848,2618.9,2618.4,3.68956358]
[1727742707239,3.81855,2618.8,2618.4,3.68956358]
[1727742707444,3.81878,2618.7,2618.4,0.68956358]
[1727742707768,3.81878,2618.7,2618.2,3.0]
[1727742708328,3.81848,2618.9,2618.0,3.171]
[1727742708539,3.81883,2618.6,2618.0,6.99062]
[1727742708747,3.81746,2619.6,2618.0,6.99062]
[1727742708748,0.8096,2620.1,2618.8,0.171]
[1727742708967,3.81697,2619.9,2619.3,0.171]
[1727742709268,3.81697,2619.9,2619.3,3.24734489]
[1727742709481,3.81708,2619.8,2619.3,3.24734489]
[1727742709645,3.81697,2619.9,2619.3,3.24734489]
[1727742709646,3.76697,2619.9,2619.3,0.171]
[1727742709852,0.1265399,2620.3,2619.9,3.81684]
[1727742710031,0.1265399,2620.3,2620.1,0.171]
[1727742710559,0.1265399,2620.3,2620.2,3.0]
[1727742710875,0.0765399,2620.3,2620.2,1.38807443]
[1727742711036,0.0265399,2620.3,2620.2,1.38807443]
[1727742711231,0.0265399,2620.3,2620.2,0.24732047]
[1727742711562,0.0265399,2620.3,2620.2,6.9875]
[1727742712171,0.0265399,2620.3,2620.2,7.06381439]
[1727742712576,0.0265399,2620.3,2620.2,6.9875]
[1727742712868,0.0265399,2620.3,2620.2,7.06380783]
[1727742713075,0.0265399,2620.3,2620.2,8.07554578]
[1727742713231,0.0265399,2620.3,2620.2,4.25904578]
[1727742713438,0.0265399,2620.3,2619.9,3.171]
[1727742713643,0.0265399,2620.3,2619.9,0.171]
[1727742713846,0.0265399,2620.3,2619.6,0.171]
[1727742714062,3.8429999,2620.3,2619.6,0.171]
[1727742714267,0.0265399,2620.3,2619.6,3.98826]
[1727742714434,3.8429999,2620.3,2619.6,0.95920171]
[1727742714643,3.8165,2620.2,2619.6,0.95920171]
[1727742715057,3.81665,2620.1,2619.6,0.78820171]
[1727742715232,3.81665,2620.1,2619.3,3.81775]
[1727742715436,3.81665,2620.1,2619.2,0.24734209]
[1727742715437,3.81695,2619.9,2619.2,0.24734209]
[1727742715670,4.57181,2619.8,2619.1,3.81798]
[1727742715873,4.57181,2619.8,2618.8,0.3171]
[1727742715874,3.81783,2619.3,2618.8,0.3171]
[1727742716101,3.81783,2619.3,2618.5,3.81886]
[1727742716102,3.81783,2619.3,2618.6,0.271]
[1727742716281,3.81811,2619.1,2618.3,3.8192]
[1727742716444,3.81811,2619.1,2618.3,4.09016]
[1727742716445,3.81837,2619.0,2618.3,4.09016]
[1727742716644,4.36773,2619.4,2618.3,0.271]
[1727742716881,3.81802,2619.2,2618.5,3.81884]
[1727742717035,7.63611,2619.2,2618.5,3.81884]
[1727742717245,3.81825,2619.0,2618.3,4.09015]
[1727742717772,3.81825,2619.0,2618.1,3.81949]
[1727742717773,3.81864,2618.8,2618.1,3.81949]
[1727742717973,3.81864,2618.8,2618.0,0.271]